[Event "Czech Youth U16 Boys 2024"]
[Site "Kouty nad Desnou"]
[Date "2024.03.13"]
[Round "6.12"]
[White "Tegda, Vojtech"]
[Black "Dvorak, Jan"]
[Result "1-0"]
[ECO "C01"]
[WhiteElo "1936"]
[BlackElo "2154"]
[Annotator "ChessBase"]
[PlyCount "41"]
[EventDate "2024.03.10"]
[EventType "swiss"]
[EventCountry "CZE"]
[SourceTitle "playchess.com"]
[Source "ChessBase"]
[SourceQuality "1"]
[TimeControl "40/5400+30:1800+30"]

1. e4 {[%emt 0:00:06]} e6 {[%emt 0:00:04]} 2. d4 {[%emt 0:00:07]} d5 {[%emt 0:00:03]} 3. exd5 {[%emt 0:00:06]} exd5 {[%emt 0:00:06]} 4. Nf3 {[%emt 0:00:36]} Bd6 {[%emt 0:01:12]} 5. c4 {[%emt 0:03:38]} Nf6 {[%emt 0:03:01]} 6. Nc3 {[%emt 0:02:33]} c6 {[%emt 0:06:36]} 7. Be2 {[%emt 0:07:11]} dxc4 {[%emt 0:02:37]} 8. Bxc4 {[%emt 0:01:17]} O-O {[%emt 0:00:15]} 9. O-O {[%emt 0:00:11]} Bg4 {[%emt 0:01:24]} 10. h3 {[%emt 0:03:24]} Bh5 {[%emt 0:00:18]} 11. Bg5 {[%emt 0:01:58]} h6 {[%emt 0:07:25]} 12. Bh4 {[%emt 0:03:43]} Nbd7 {[%emt 0:11:02]} 13. Re1 {[%emt 0:14:26]} Qc7 {[%emt 0:05:32]} 14. Qd3 {[%emt 0:05:47]} Kh8 {[%emt 0:05:57]} 15. d5 {[%emt 0:13:10]} g5 {[%emt 0:09:56]} 16. dxc6 {[%emt 0:04:19]} bxc6 {[%emt 0:05:30]} 17. Rad1 {[%emt 0:06:46]} Bc5 {[%emt 0:14:52]} 18. Na4 {[%emt 0:10:06]} Rad8 {[%emt 0:20:28]} 19. Qc3 {[%emt 0:03:15]} Bd6 {[%emt 0:01:22]} 20. Rxd6 {[%emt 0:00:27]} Qxd6 {[%emt 0:01:36]} 21. Bg3 {[%emt 0:00:04]} 1-0

[Event "Czech Youth U16 Boys 2024"]
[Site "Kouty nad Desnou"]
[Date "2024.03.14"]
[Round "7.1"]
[White "Hladky, Tadeas"]
[Black "Prazak, Daniel"]
[Result "1/2-1/2"]
[ECO "A15"]
[WhiteElo "2056"]
[BlackElo "2223"]
[Annotator "RC"]
[PlyCount "64"]
[EventDate "2024.03.10"]
[EventType "swiss"]
[EventCountry "CZE"]
[SourceTitle "playchess.com"]
[Source "ChessBase"]
[SourceQuality "1"]
[TimeControl "40/5400+30:1800+30"]

1. c4 {[%emt 0:00:05]} Nf6 {[%emt 0:03:43]} 2. Nf3 {[%emt 0:00:31]} g6 {[%emt 0:02:52]} 3. Nc3 {[%emt 0:01:16]} d5 {[%emt 0:00:16]} 4. cxd5 {[%emt 0:00:24]} Nxd5 {[%emt 0:00:07]} 5. e4 {[%emt 0:00:39]} Nxc3 {[%emt 0:00:06]} 6. bxc3 {[%emt 0:08:57]} c5 {[%emt 0:00:58]} 7. d4 {[%emt 0:00:15]} Bg7 {[%emt 0:00:08]} 8. Bb5+ {[%emt 0:02:16]} Nc6 {[%emt 0:00:30]} 9. O-O {[%emt 0:02:32]} O-O {[%emt 0:01:20]} 10. Be3 {[%emt 0:01:44]} Bg4 {[%emt 0:00:45]} 11. Bxc6 {[%emt 0:03:19]} bxc6 {[%emt 0:00:09]} 12. Rc1 {[%emt 0:21:40]} Qa5 {[%emt 0:01:17]} 13. Qc2 {[%emt 0:01:19]} f5 {[%emt 0:01:11]} 14. Qb3+ {[%emt 0:21:15]} Kh8 {[%emt 0:03:31]} 15. exf5 {[%emt 0:12:56]} Bxf3 {[%emt 0:03:26]} 16. gxf3 {[%emt 0:00:10]} gxf5 {[%emt 0:03:26]} 17. Bf4 {[%emt 0:06:28]} Rad8 {[%emt 0:13:23]} 18. Be5 {[%emt 0:02:21]} Bxe5 {[%emt 0:11:02]} 19. dxe5 {[%emt 0:00:02]} Qa6 {[%emt 0:08:47]} 20. c4 {[%emt 0:02:53]} Rb8 {[%emt 0:02:12]} 21. Qe3 {[%emt 0:00:50]} Qxa2 {[%emt 0:01:56]} 22. Kh1 {[%emt 0:00:50]} Qb3 {[%emt 0:03:16]} 23. Rc3 {[%emt 0:00:20]} Qb2 {[%emt 0:00:36]} 24. e6 {[%emt 0:00:31]} Rf6 {[%emt 0:01:10]} 25. Rd3 {[%emt 0:06:18]} Qc2 {[%emt 0:09:26]} 26. Rc1 {[%emt 0:01:59]} f4 {[%emt 0:03:59]} 27. Qxf4 {[%emt 0:00:02]} Rxf4 {[%emt 0:00:36]} 28. Rxc2 {[%emt 0:00:04]} Rb1+ {[%emt 0:00:59]} 29. Kg2 {[%emt 0:00:05]} Rf6 {[%emt 0:00:19]} 30. f4 {[%emt 0:00:34]} Rxe6 {[%emt 0:01:17]} 31. Rg3 {[%emt 0:02:10]} Rb8 {[%emt 0:08:01]} 32. Ra2 {[%emt 0:00:17]} Rf6 1/2-1/2

[Event "Czech Youth U16 Boys 2024"]
[Site "Kouty nad Desnou"]
[Date "2024.03.14"]
[Round "7.2"]
[White "Andrle, Filip"]
[Black "Jasso, Matej"]
[Result "1/2-1/2"]
[ECO "B94"]
[WhiteElo "1943"]
[BlackElo "2060"]
[Annotator "RC"]
[PlyCount "60"]
[EventDate "2024.03.10"]
[EventType "swiss"]
[EventCountry "CZE"]
[SourceTitle "playchess.com"]
[Source "ChessBase"]
[SourceQuality "1"]
[TimeControl "40/5400+30:1800+30"]

1. e4 {[%emt 0:00:10]} c5 {[%emt 0:00:44]} 2. Nf3 {[%emt 0:00:08]} d6 {[%emt 0:00:03]} 3. d4 {[%emt 0:00:06]} cxd4 {[%emt 0:00:04]} 4. Nxd4 {[%emt 0:00:04]} Nf6 {[%emt 0:00:03]} 5. Nc3 {[%emt 0:00:07]} a6 {[%emt 0:00:03]} 6. Bg5 {[%emt 0:00:05]} Nbd7 {[%emt 0:00:16]} 7. f4 {[%emt 0:04:39]} Qb6 {[%emt 0:00:46]} 8. Qd2 {[%emt 0:01:26]} e5 {[%emt 0:01:00]} 9. Nb3 {[%emt 0:15:00]} Be7 {[%emt 0:08:34]} 10. O-O-O {[%emt 0:03:00]} h6 {[%emt 0:02:27]} 11. Bxf6 {[%emt 0:04:27]} Nxf6 {[%emt 0:00:29]} 12. Kb1 {[%emt 0:01:25]} Be6 {[%emt 0:09:21]} 13. f5 {[%emt 0:09:25]} Bd7 {[%emt 0:05:58]} 14. Be2 {[%emt 0:17:02]} Bc6 {[%emt 0:09:03]} 15. Bf3 {[%emt 0:03:07]} Qc7 {[%emt 0:10:54]} 16. g4 {[%emt 0:04:12]} b5 {[%emt 0:02:58]} 17. h4 {[%emt 0:03:58]} b4 {[%emt 0:01:21]} 18. Nd5 {[%emt 0:01:48]} Bxd5 {[%emt 0:00:31]} 19. exd5 {[%emt 0:00:06]} a5 {[%emt 0:00:16]} 20. Qd3 {[%emt 0:06:23]} Nd7 {[%emt 0:10:52]} 21. Nd2 {[%emt 0:03:53]} Nc5 {[%emt 0:01:15]} 22. Qb5+ {[%emt 0:00:21]} Qd7 {[%emt 0:00:19]} 23. Qxd7+ {[%emt 0:01:16]} Kxd7 {[%emt 0:00:06]} 24. Ne4 {[%emt 0:01:21]} Nxe4 {[%emt 0:01:30]} 25. Bxe4 {[%emt 0:00:14]} f6 {[%emt 0:00:37]} 26. h5 {[%emt 0:01:53]} Rhc8 {[%emt 0:01:00]} 27. Rh3 {[%emt 0:02:45]} Rc4 {[%emt 0:03:31]} 28. Re3 {[%emt 0:01:01]} Bd8 {[%emt 0:00:06]} 29. b3 {[%emt 0:01:57]} Rc5 {[%emt 0:01:42]} 30. Rf3 {[%emt 0:08:19]} Rb8 {[%emt 0:07:02]} 1/2-1/2

[Event "Czech Youth U16 Boys 2024"]
[Site "Kouty nad Desnou"]
[Date "2024.03.14"]
[Round "7.3"]
[White "Juracak, David"]
[Black "Juhanak, Daniel"]
[Result "1/2-1/2"]
[ECO "E21"]
[WhiteElo "1944"]
[BlackElo "2005"]
[Annotator "RC"]
[PlyCount "120"]
[EventDate "2024.03.10"]
[EventType "swiss"]
[EventCountry "CZE"]
[SourceTitle "playchess.com"]
[Source "ChessBase"]
[SourceQuality "1"]
[TimeControl "40/5400+30:1800+30"]

1. d4 {[%emt 0:00:10]} Nf6 {[%emt 0:00:13]} 2. c4 {[%emt 0:00:26]} e6 {[%emt 0:00:10]} 3. Nc3 {[%emt 0:00:49]} Bb4 {[%emt 0:00:23]} 4. Nf3 {[%emt 0:01:50]} d5 {[%emt 0:01:04]} 5. e3 {[%emt 0:01:53]} O-O {[%emt 0:00:37]} 6. Bd3 {[%emt 0:01:06]} dxc4 {[%emt 0:04:58]} 7. Bxc4 {[%emt 0:00:21]} b6 {[%emt 0:03:43]} 8. O-O {[%emt 0:03:24]} Bb7 {[%emt 0:05:32]} 9. Bd2 {[%emt 0:06:33]} Nbd7 {[%emt 0:01:52]} 10. Rc1 {[%emt 0:15:26]} a6 {[%emt 0:04:20]} 11. Re1 {[%emt 0:03:11]} Bd6 {[%emt 0:03:45]} 12. e4 {[%emt 0:02:27]} e5 {[%emt 0:02:13]} 13. Bg5 {[%emt 0:04:24]} h6 {[%emt 0:09:59]} 14. Bh4 {[%emt 0:01:31]} b5 {[%emt 0:08:25]} 15. Bb3 {[%emt 0:01:46]} c5 {[%emt 0:09:37]} 16. Bxf6 {[%emt 0:05:09]} Qxf6 {[%emt 0:02:15]} 17. dxc5 {[%emt 0:01:08]} Nxc5 {[%emt 0:00:32]} 18. Bd5 {[%emt 0:00:39]} Rac8 {[%emt 0:06:26]} 19. b4 {[%emt 0:19:56]} Na4 {[%emt 0:04:07]} 20. Nxa4 {[%emt 0:02:27]} Rxc1 {[%emt 0:01:29]} 21. Qxc1 {[%emt 0:00:08]} Bxd5 {[%emt 0:00:23]} 22. exd5 {[%emt 0:00:06]} bxa4 {[%emt 0:00:09]} 23. a3 {[%emt 0:00:07]} e4 {[%emt 0:06:23]} 24. Rxe4 {[%emt 0:02:46]} Qf5 {[%emt 0:00:39]} 25. Rc4 {[%emt 0:07:17]} Qxd5 {[%emt 0:01:26]} 26. Rd4 {[%emt 0:03:10]} Qe6 {[%emt 0:01:43]} 27. Qd1 {[%emt 0:00:34]} Be5 {[%emt 0:06:02]} 28. Nxe5 {[%emt 0:00:14]} Qxe5 {[%emt 0:00:07]} 29. g3 {[%emt 0:02:55]} Re8 {[%emt 0:02:19]} 30. Qxa4 {[%emt 0:01:50]} Qe1+ {[%emt 0:07:44]} 31. Kg2 {[%emt 0:00:06]} Re2 {[%emt 0:04:15]} 32. Rf4 {[%emt 0:00:17]} g5 {[%emt 0:01:10]} 33. Rf5 {[%emt 0:02:18]} Qb1 {[%emt 0:00:30]} 34. Qd7 {[%emt 0:01:41]} Qe4+ {[%emt 0:01:34]} 35. Kh3 {[%emt 0:00:39]} Qe6 {[%emt 0:00:55]} 36. Qxe6 {[%emt 0:01:23]} Rxe6 {[%emt 0:00:37]} 37. Kg4 {[%emt 0:01:13]} Kg7 {[%emt 0:00:34]} 38. Kf3 {[%emt 0:01:00]} Kg6 {[%emt 0:00:40]} 39. Ra5 {[%emt 0:00:39]} Kf6 {[%emt 0:00:30]} 40. a4 {[%emt 0:00:27]} Rb6 {[%emt 0:00:30]} 41. b5 {[%emt 0:32:46]} axb5 {[%emt 0:01:41]} 42. Rxb5 {[%emt 0:00:00]} Ra6 {[%emt 0:02:07]} 43. a5 {[%emt 0:00:00]} Kg7 {[%emt 0:00:39]} 44. Ke4 {[%emt 0:00:00]} Re6+ {[%emt 0:09:05]} 45. Kd4 {[%emt 0:00:00]} Re2 {[%emt 0:01:12]} 46. a6 {[%emt 0:00:00]} Ra2 {[%emt 0:00:57]} 47. Rb6 {[%emt 0:00:00]} Rxf2 {[%emt 0:02:16]} 48. a7 {[%emt 0:00:00]} Ra2 {[%emt 0:01:19]} 49. Rb7 {[%emt 0:00:00]} Kg6 {[%emt 0:04:28]} 50. Kc5 {[%emt 0:00:00]} f5 {[%emt 0:02:42]} 51. Kd5 {[%emt 0:00:00]} f4 {[%emt 0:01:19]} 52. gxf4 {[%emt 0:00:00]} gxf4 {[%emt 0:00:07]} 53. Ke4 {[%emt 0:00:00]} Ra4+ {[%emt 0:00:27]} 54. Kf3 {[%emt 0:00:00]} Kf5 {[%emt 0:01:54]} 55. Rf7+ {[%emt 0:00:00]} Kg6 {[%emt 0:00:59]} 56. Rb7 {[%emt 0:00:00]} Kf5 {[%emt 0:00:13]} 57. Rb5+ {[%emt 0:00:00]} Kg6 {[%emt 0:01:29]} 58. Rb6+ {[%emt 0:00:00]} Kg5 {[%emt 0:00:58]} 59. Rb5+ {[%emt 0:00:00]} Kg6 {[%emt 0:00:16]} 60. Rb7 {[%emt 0:00:00]} Kf5 1/2-1/2

[Event "Czech Youth U16 Boys 2024"]
[Site "Kouty nad Desnou"]
[Date "2024.03.14"]
[Round "7.4"]
[White "Zrubek, Dan"]
[Black "Ulcak, Michael"]
[Result "1/2-1/2"]
[ECO "B11"]
[WhiteElo "1882"]
[BlackElo "1929"]
[Annotator "RC"]
[PlyCount "65"]
[EventDate "2024.03.10"]
[EventType "swiss"]
[EventCountry "CZE"]
[SourceTitle "playchess.com"]
[Source "ChessBase"]
[SourceQuality "1"]
[TimeControl "40/5400+30:1800+30"]

1. e4 {[%emt 0:00:02]} c6 {[%emt 0:00:05]} 2. Nf3 {[%emt 0:00:10]} d5 {[%emt 0:00:13]} 3. Nc3 {[%emt 0:00:11]} Bg4 {[%emt 0:00:48]} 4. h3 {[%emt 0:00:25]} Bxf3 {[%emt 0:00:48]} 5. Qxf3 {[%emt 0:00:22]} e6 {[%emt 0:01:40]} 6. Be2 {[%emt 0:02:18]} Nf6 {[%emt 0:01:57]} 7. Qf4 {[%emt 0:03:16]} dxe4 {[%emt 0:03:09]} 8. Nxe4 {[%emt 0:01:16]} Nxe4 {[%emt 0:05:42]} 9. Qxe4 {[%emt 0:00:09]} Nd7 {[%emt 0:01:07]} 10. c3 {[%emt 0:06:51]} Nf6 {[%emt 0:02:37]} 11. Qf3 {[%emt 0:01:40]} Qd5 {[%emt 0:02:18]} 12. d4 {[%emt 0:02:21]} Qxf3 {[%emt 0:03:46]} 13. Bxf3 {[%emt 0:00:16]} O-O-O {[%emt 0:03:42]} 14. Bg5 {[%emt 0:02:05]} Be7 {[%emt 0:02:54]} 15. O-O-O {[%emt 0:04:06]} Nd5 {[%emt 0:02:25]} 16. Bxe7 {[%emt 0:01:37]} Nxe7 {[%emt 0:00:09]} 17. Rhe1 {[%emt 0:04:06]} Rd7 {[%emt 0:05:30]} 18. Kc2 {[%emt 0:06:08]} Rhd8 {[%emt 0:01:40]} 19. g3 {[%emt 0:02:54]} Ng6 {[%emt 0:02:39]} 20. Be4 {[%emt 0:04:17]} Ne7 {[%emt 0:05:23]} 21. Bf3 {[%emt 0:06:32]} Ng6 {[%emt 0:00:37]} 22. b4 {[%emt 0:08:13]} Kc7 {[%emt 0:03:56]} 23. a4 {[%emt 0:02:19]} b5 {[%emt 0:08:17]} 24. Ra1 {[%emt 0:08:04]} Kb6 {[%emt 0:02:05]} 25. axb5 {[%emt 0:11:53]} cxb5 {[%emt 0:00:35]} 26. Ra5 {[%emt 0:00:28]} a6 {[%emt 0:04:11]} 27. Rea1 {[%emt 0:02:17]} Ra7 {[%emt 0:00:15]} 28. Be2 {[%emt 0:01:42]} Rdd7 {[%emt 0:05:33]} 29. c4 {[%emt 0:04:24]} bxc4 {[%emt 0:03:52]} 30. Kc3 {[%emt 0:00:53]} Ne7 {[%emt 0:03:50]} 31. Bxc4 {[%emt 0:01:11]} Nd5+ {[%emt 0:02:09]} 32. Kb3 {[%emt 0:01:53]} Nc7 {[%emt 0:01:14]} 33. Kc3 {[%emt 0:01:25]} 1/2-1/2

[Event "Czech Youth U16 Boys 2024"]
[Site "Kouty nad Desnou"]
[Date "2024.03.14"]
[Round "7.5"]
[White "Fizer, Marek"]
[Black "Hozda, Max"]
[Result "1/2-1/2"]
[ECO "B01"]
[WhiteElo "2058"]
[BlackElo "2032"]
[Annotator "RC"]
[PlyCount "82"]
[EventDate "2024.03.10"]
[EventType "swiss"]
[EventCountry "CZE"]
[SourceTitle "playchess.com"]
[Source "ChessBase"]
[SourceQuality "1"]
[TimeControl "40/5400+30:1800+30"]

1. e4 {[%emt 0:00:04]} d5 {[%emt 0:00:50]} 2. exd5 {[%emt 0:00:14]} Qxd5 {[%emt 0:00:15]} 3. Nc3 {[%emt 0:00:30]} Qa5 {[%emt 0:00:24]} 4. d4 {[%emt 0:00:38]} Nf6 {[%emt 0:00:12]} 5. Nf3 {[%emt 0:02:43]} c6 {[%emt 0:01:01]} 6. Bc4 {[%emt 0:01:38]} Bf5 {[%emt 0:01:31]} 7. Ne5 {[%emt 0:02:30]} e6 {[%emt 0:00:22]} 8. g4 {[%emt 0:00:58]} Bg6 {[%emt 0:00:44]} 9. h4 {[%emt 0:15:58]} Nbd7 {[%emt 0:01:47]} 10. Nxd7 {[%emt 0:04:23]} Nxd7 {[%emt 0:02:39]} 11. h5 {[%emt 0:12:50]} Be4 {[%emt 0:01:02]} 12. O-O {[%emt 0:00:49]} Bd5 {[%emt 0:03:36]} 13. Nxd5 {[%emt 0:02:07]} cxd5 {[%emt 0:03:06]} 14. Bd3 {[%emt 0:00:54]} Bd6 {[%emt 0:06:03]} 15. Qf3 {[%emt 0:06:10]} Qd8 {[%emt 0:28:50]} 16. Kg2 {[%emt 0:07:58]} Qf6 {[%emt 0:07:41]} 17. Qxf6 {[%emt 0:09:43]} Nxf6 {[%emt 0:00:12]} 18. f3 {[%emt 0:00:34]} a6 {[%emt 0:06:40]} 19. Bd2 {[%emt 0:07:13]} Kd7 {[%emt 0:11:40]} 20. b3 {[%emt 0:04:51]} b5 {[%emt 0:05:09]} 21. h6 {[%emt 0:02:26]} g6 {[%emt 0:01:01]} 22. g5 {[%emt 0:02:58]} Ne8 {[%emt 0:04:23]} 23. c4 {[%emt 0:08:06]} bxc4 {[%emt 0:01:20]} 24. bxc4 {[%emt 0:00:13]} dxc4 {[%emt 0:00:10]} 25. Bxc4 {[%emt 0:00:22]} Nc7 {[%emt 0:00:33]} 26. Rab1 {[%emt 0:00:37]} Rhb8 {[%emt 0:01:30]} 27. f4 {[%emt 0:01:29]} Kc8 {[%emt 0:05:33]} 28. Kf3 {[%emt 0:03:58]} Rxb1 {[%emt 0:01:29]} 29. Rxb1 {[%emt 0:00:03]} Rb8 {[%emt 0:00:12]} 30. Rxb8+ {[%emt 0:00:44]} Kxb8 {[%emt 0:00:01]} 31. f5 {[%emt 0:00:59]} gxf5 {[%emt 0:05:30]} 32. Bf4 {[%emt 0:00:17]} Bf8 {[%emt 0:00:32]} 33. Be5 {[%emt 0:01:27]} Kc8 {[%emt 0:00:24]} 34. Kf4 {[%emt 0:00:22]} Kd7 {[%emt 0:00:23]} 35. a4 {[%emt 0:00:40]} Bb4 {[%emt 0:00:41]} 36. Bxc7 {[%emt 0:00:23]} Bd2+ {[%emt 0:00:18]} 37. Ke5 {[%emt 0:00:25]} Bxg5 {[%emt 0:00:17]} 38. d5 {[%emt 0:00:36]} Kxc7 {[%emt 0:00:31]} 39. dxe6 {[%emt 0:00:31]} fxe6 {[%emt 0:00:07]} 40. Bxe6 {[%emt 0:00:16]} Bxh6 {[%emt 0:00:58]} 41. Bxf5 {[%emt 0:30:15]} Bg7+ {[%emt 0:30:27]} 1/2-1/2

[Event "Czech Youth U16 Boys 2024"]
[Site "Kouty nad Desnou"]
[Date "2024.03.14"]
[Round "7.6"]
[White "Vysinsky, Otakar"]
[Black "Setina, Vaclav"]
[Result "1/2-1/2"]
[ECO "B10"]
[WhiteElo "1882"]
[BlackElo "2024"]
[Annotator "RC"]
[PlyCount "178"]
[EventDate "2024.03.10"]
[EventType "swiss"]
[EventCountry "CZE"]
[SourceTitle "playchess.com"]
[Source "ChessBase"]
[SourceQuality "1"]
[TimeControl "40/5400+30:1800+30"]

1. e4 {[%emt 0:00:04]} c6 {[%emt 0:00:19]} 2. c4 {[%emt 0:00:11]} d5 {[%emt 0:00:04]} 3. exd5 {[%emt 0:00:04]} cxd5 {[%emt 0:00:02]} 4. cxd5 {[%emt 0:00:09]} Nf6 {[%emt 0:00:12]} 5. Nc3 {[%emt 0:00:16]} Nxd5 {[%emt 0:00:22]} 6. Nf3 {[%emt 0:00:25]} Nc6 {[%emt 0:00:46]} 7. Bc4 {[%emt 0:00:27]} Nb6 {[%emt 0:03:08]} 8. Bb3 {[%emt 0:00:26]} Bf5 {[%emt 0:03:15]} 9. d4 {[%emt 0:00:54]} e6 {[%emt 0:00:19]} 10. O-O {[%emt 0:00:48]} Be7 {[%emt 0:00:33]} 11. Be3 {[%emt 0:03:41]} O-O {[%emt 0:00:15]} 12. Qe2 {[%emt 0:05:03]} Na5 {[%emt 0:12:26]} 13. Rfd1 {[%emt 0:09:19]} Nxb3 {[%emt 0:01:37]} 14. axb3 {[%emt 0:00:02]} Nd5 {[%emt 0:04:31]} 15. Ne5 {[%emt 0:01:46]} a6 {[%emt 0:08:57]} 16. Rac1 {[%emt 0:07:28]} Rc8 {[%emt 0:02:54]} 17. Qf3 {[%emt 0:13:22]} f6 {[%emt 0:04:10]} 18. Nc4 {[%emt 0:05:20]} Rc6 {[%emt 0:19:06]} 19. Nd2 {[%emt 0:22:54]} Bb4 {[%emt 0:11:43]} 20. Nxd5 {[%emt 0:04:05]} Qxd5 {[%emt 0:00:04]} 21. Qxd5 {[%emt 0:00:06]} exd5 {[%emt 0:00:07]} 22. Rxc6 {[%emt 0:00:24]} bxc6 {[%emt 0:00:01]} 23. Rc1 {[%emt 0:00:37]} Rc8 {[%emt 0:00:41]} 24. Nb1 {[%emt 0:10:02]} Bxb1 {[%emt 0:00:43]} 25. Rxb1 {[%emt 0:00:01]} Kf7 {[%emt 0:02:28]} 26. Rc1 {[%emt 0:01:31]} Ke6 {[%emt 0:00:08]} 27. Kf1 {[%emt 0:00:08]} Kd7 {[%emt 0:00:17]} 28. Ke2 {[%emt 0:00:20]} Rb8 {[%emt 0:00:22]} 29. Kd3 {[%emt 0:00:46]} Bd6 {[%emt 0:02:48]} 30. Kc3 {[%emt 0:01:48]} Kc7 {[%emt 0:01:28]} 31. Ra1 {[%emt 0:01:39]} Kb6 {[%emt 0:00:23]} 32. h3 {[%emt 0:02:05]} Re8 {[%emt 0:01:20]} 33. Re1 {[%emt 0:03:14]} Kb5 {[%emt 0:00:39]} 34. Kd3 {[%emt 0:01:41]} Bb4 {[%emt 0:02:12]} 35. Rc1 {[%emt 0:01:07]} h5 {[%emt 0:10:42]} 36. Ra1 {[%emt 0:02:18]} g5 {[%emt 0:01:16]} 37. g3 {[%emt 0:01:41]} Bd6 {[%emt 0:02:38]} 38. Rc1 {[%emt 0:01:03]} Re7 {[%emt 0:00:10]} 39. Ra1 {[%emt 0:01:33]} Bc7 {[%emt 0:04:35]} 40. Bd2 {[%emt 0:01:01]} Bb6 {[%emt 0:01:39]} 41. Bc3 {[%emt 0:05:15]} Bc7 {[%emt 0:02:35]} 42. Bd2 {[%emt 0:00:33]} Bd6 {[%emt 0:00:08]} 43. Ra5+ {[%emt 0:04:35]} Kb6 {[%emt 0:00:09]} 44. Ra1 {[%emt 0:00:07]} Re6 {[%emt 0:02:31]} 45. Be3 {[%emt 0:01:20]} Be7 {[%emt 0:00:41]} 46. Rc1 {[%emt 0:02:00]} Bb4 {[%emt 0:02:01]} 47. Ra1 {[%emt 0:00:31]} Be7 {[%emt 0:00:45]} 48. Rc1 {[%emt 0:00:05]} Kb5 {[%emt 0:00:14]} 49. Ra1 {[%emt 0:00:53]} Bb4 {[%emt 0:00:10]} 50. Rc1 {[%emt 0:00:43]} Re8 {[%emt 0:00:19]} 51. Ra1 {[%emt 0:00:44]} Re7 {[%emt 0:00:10]} 52. Rc1 {[%emt 0:00:21]} Rh7 {[%emt 0:00:33]} 53. Ra1 {[%emt 0:01:33]} g4 {[%emt 0:00:38]} 54. Rh1 {[%emt 0:02:08]} f5 {[%emt 0:02:53]} 55. Kc2 {[%emt 0:01:24]} Be7 {[%emt 0:00:53]} 56. Kd3 {[%emt 0:03:50]} Bf6 {[%emt 0:02:01]} 57. Kc2 {[%emt 0:00:39]} Rh8 {[%emt 0:00:49]} 58. Kd3 {[%emt 0:00:22]} gxh3 {[%emt 0:03:29]} 59. Rxh3 {[%emt 0:00:40]} Kb4 {[%emt 0:01:08]} 60. Kc2 {[%emt 0:00:30]} h4 {[%emt 0:00:30]} 61. gxh4 {[%emt 0:01:52]} Rxh4 {[%emt 0:00:48]} 62. Rf3 {[%emt 0:02:13]} Bxd4 {[%emt 0:04:34]} 63. Bxd4 {[%emt 0:02:46]} Rxd4 {[%emt 0:00:00]} 64. Rxf5 {[%emt 0:00:16]} Re4 {[%emt 0:00:37]} 65. Rf6 {[%emt 0:01:53]} c5 {[%emt 0:00:27]} 66. Rxa6 {[%emt 0:04:01]} Re2+ {[%emt 0:00:38]} 67. Kd3 {[%emt 0:00:13]} Rxf2 {[%emt 0:06:45]} 68. Rb6+ {[%emt 0:00:14]} Ka5 {[%emt 0:00:01]} 69. Rb8 {[%emt 0:01:06]} Rxb2 {[%emt 0:00:49]} 70. Kc3 {[%emt 0:00:26]} Rh2 {[%emt 0:01:09]} 71. Kd3 {[%emt 0:01:04]} Rh3+ {[%emt 0:00:55]} 72. Kc2 {[%emt 0:00:07]} d4 {[%emt 0:00:29]} 73. Kd2 {[%emt 0:01:00]} Rh6 {[%emt 0:00:52]} 74. Kc2 {[%emt 0:01:15]} Rb6 {[%emt 0:00:07]} 75. Ra8+ {[%emt 0:00:45]} Kb4 {[%emt 0:00:08]} 76. Rc8 {[%emt 0:00:13]} Rb5 {[%emt 0:00:44]} 77. Rd8 {[%emt 0:00:34]} Rb7 {[%emt 0:00:49]} 78. Rc8 {[%emt 0:00:25]} Kb5 {[%emt 0:00:08]} 79. Kd3 {[%emt 0:00:54]} Rh7 {[%emt 0:00:54]} 80. Rb8+ {[%emt 0:00:30]} Kc6 {[%emt 0:00:23]} 81. Kc4 {[%emt 0:00:37]} Rh3 {[%emt 0:01:35]} 82. Rc8+ {[%emt 0:00:09]} Kd6 {[%emt 0:00:05]} 83. Rd8+ {[%emt 0:00:38]} Kc7 {[%emt 0:00:02]} 84. Rd5 {[%emt 0:00:44]} Kb6 {[%emt 0:00:54]} 85. Rd6+ {[%emt 0:00:24]} Kc7 {[%emt 0:00:01]} 86. Rd5 {[%emt 0:00:35]} Rc3+ {[%emt 0:00:15]} 87. Kb5 {[%emt 0:00:01]} d3 {[%emt 0:00:34]} 88. b4 {[%emt 0:00:45]} c4 {[%emt 0:00:33]} 89. Kc5 {[%emt 0:00:25]} Rc2 {[%emt 0:01:30]} 1/2-1/2